[Event "Turkish Youth Championships 2023"]
[Site "Samsun"]
[Date "2023.05.23"]
[Round "7.4"]
[White "Dogan, Umut Anil"]
[Black "Angun, Batu"]
[Result "0-1"]
[WhiteElo "1857"]
[BlackElo "2205"]
[PlyCount "70"]
[EventDate "2023.05.19"]
[EventType "swiss"]
[EventCountry "TUR"]
[TimeControl "5400+30"]
[WhiteClock "0:01:15"]

1. d4 {[%emt 0:01:00]} Nf6 {[%emt 0:09:00]} 2. Bg5 {[%emt 0:00:30]} d5 {[%emt 0:02:30]} 3. Bxf6 {[%emt 0:01:30]} exf6 {[%emt 0:01:30]} 4. e3 {[%emt 0:00:00]} Bd6 {[%emt 0:03:30]} 5. g3 {[%emt 0:00:00]} h5 {[%emt 0:01:30]} 6. h4 {[%emt 0:04:30]} c6 {[%emt 0:01:30]} 7. Bg2 {[%emt 0:00:30]} Bg4 {[%emt 0:00:30]} 8. Ne2 {[%emt 0:00:30]} Qe7 {[%emt 0:01:30]} 9. Nd2 {[%emt 0:02:30]} Nd7 {[%emt 0:03:30]} 10. a3 {[%emt 0:04:30]} O-O {[%emt 0:04:30]} 11. c4 {[%emt 0:05:30]} Rfe8 {[%emt 0:06:30]} 12. Nf3 {[%emt 0:23:30]} dxc4 {[%emt 0:09:30]} 13. Rc1 {[%emt 0:01:30]} Nb6 {[%emt 0:01:30]} 14. O-O {[%emt 0:04:30]} Rad8 {[%emt 0:00:30]} 15. Nh2 {[%emt 0:05:30]} Bf5 {[%emt 0:08:30]} 16. Nc3 {[%emt 0:07:30]} Bd3 {[%emt 0:00:30]} 17. Re1 {[%emt 0:02:30]} g6 {[%emt 0:01:30]} 18. Bf1 {[%emt 0:04:30]} Bxf1 {[%emt 0:05:30]} 19. Nxf1 {[%emt 0:00:30]} Nd5 {[%emt 0:03:30]} 20. Nd2 {[%emt 0:07:30]} Nxc3 {[%emt 0:06:30]} 21. Rxc3 {[%emt 0:00:30]} b5 {[%emt 0:00:30]} 22. b3 {[%emt 0:05:53]} Bxa3 {[%emt 0:03:30]} 23. bxc4 {[%emt 0:00:55]} Bb4 {[%emt 0:04:48]} 24. Rc1 {[%emt 0:01:52]} c5 {[%emt 0:00:17]} 25. cxb5 {[%emt 0:03:51]} cxd4 {[%emt 0:00:30]} 26. e4 {[%emt 0:00:09]} Qb7 {[%emt 0:00:25]} 27. Ra1 {[%emt 0:02:39]} d3 {[%emt 0:02:38]} 28. Ra4 {[%emt 0:04:42]} Qxb5 {[%emt 0:01:01]} 29. Rxa7 {[%emt 0:00:33]} Qc5 {[%emt 0:01:16]} 30. Ra2 {[%emt 0:03:19]} f5 {[%emt 0:10:36]} 31. exf5 {[%emt 0:01:03]} Qd5 {[%emt 0:00:08]} 32. Ra4 {[%emt 0:01:00]} Bxd2 {[%emt 0:00:54]} 33. Qxd2 {[%emt 0:01:39]} Rxe1+ {[%emt 0:00:30]} 34. Qxe1 {[%emt 0:00:30]} d2 {[%emt 0:00:30]} 35. Qd1 {[%emt 0:00:00]} Re8 {[%emt 0:00:00]} 0-1

[Event "Turkish Youth Championships 2023"]
[Site "Samsun"]
[Date "2023.05.23"]
[Round "7.5"]
[White "Isilak, Enes"]
[Black "Hasirci, Ozgur Deniz"]
[Result "1-0"]
[ECO "E05"]
[WhiteElo "2181"]
[BlackElo "1763"]
[Annotator "TA"]
[PlyCount "145"]
[EventDate "2023.05.19"]
[EventType "swiss"]
[EventCountry "TUR"]
[SourceTitle "playchess.com"]
[Source "ChessBase"]
[SourceQuality "1"]
[TimeControl "5400+30"]

{[%evp 13,144,24,19,12,25,-12,-14,0,3,-16,-9,-60,-39,-54,-12,-106,-106,-110,-98,-120,-113,-111,-105,-107,-117,-79,-114,-160,-147,-154,-137,-256,-242,-237,-252,-227,-226,-244,-248,-256,-245,-238,-200,-250,-183,-247,-214,-445,-451,-439,-392,-484,-470,-590,-589,-581,-566,-563,115,96,149,0,545,513,515,519,487,496,454,476,659,779,6026,6022,5897,5493,5395,5149,5129,1832,4426,5278,2872,5097,4839,4134,2254,2916,4411,3880,2078,1845,4412,4390,3889,3125,2545,2000,1272,1066,29974,29975,29976,29977,29977,29978,29976,29977,29980,29981,29981,29982,29982,29983,29983,29984,29984,29985,29985,29986,29985,29985,29985,29985,29987,29988,29988,29989,29989,29990,29991,29992,29992]} 1. d4 {[%emt 0:09:00]} Nf6 {[%emt 0:01:00]} 2. c4 {[%emt 0:00:30]} e6 {[%emt 0:00:30]} 3. g3 {[%emt 0:00:30]} Be7 {[%emt 0:00:30]} 4. Bg2 {[%emt 0:00:30]} d5 {[%emt 0:00:30]} 5. Nf3 {[%emt 0:00:30][%cal Bg1f3,Bf3e5,Be5c4][%mdl 32]} O-O {[%emt 0:00:30]} 6. O-O {[%emt 0:00:30]} dxc4 {[%emt 0:00:00]} 7. Qc2 {[%emt 0:00:30]} b5 {[%emt 0:00:00]} 8. a4 $1 {[%emt 0:08:30] E05: Open Catalan: 5 Nf3 Be7.} b4 {[%emt 0:00:00] 8...Bb7 is the modern continuation.} 9. Ne5 {[%emt 0:10:30]} (9. Nfd2 $5 {[%cal Rg2a8]} c6 10. Nxc4 $11) 9... Qxd4 $1 {[%emt 0:00:00]} 10. Nxc4 {[%emt 0:02:30] The position is equal.} Nd5 {[%emt 0:10:30]} 11. Be3 {[%emt 0:25:30]} (11. Rd1 $5 {[%cal Rd1d4]} Qc5 12. Be3 Nxe3 13. Nxe3 $11) 11... Qf6 {[%emt 0:04:30] [#]} 12. h4 $146 {[%emt 0:04:30]} (12. Nbd2 $11) ({Predecessor:} 12. Nbd2 Ba6 13. Be4 g6 14. Bh6 Re8 15. Ne3 c6 16. Nf3 Nd7 17. Ng4 {0-1 Stoyanov,S (2217)-Nikolov,M (2480) BUL-ch Sofia 2023 (5)}) 12... h6 $15 {[%emt 0:34:30]} 13. Rd1 {[%emt 0:04:30]} c5 {[%emt 0:08:30] Inhibits Bd4.} 14. Bc1 {[%emt 0:02:30]} (14. Nbd2 $11) 14... Nc6 $17 {[%emt 0:07:30] And now ...Nd4 would win.} 15. e4 {[%emt 0:07:30]} Qg6 {[%emt 0:00:30]} 16. h5 {[%emt 0:01:21]} Qh7 {[%emt 0:00:30]} 17. Qe2 {[%emt 0:00:35]} Nf6 {[%emt 0:01:30]} 18. e5 {[%emt 0:01:25] [#]} Nd5 {[%emt 0:00:30][%mdl 512]} 19. Be4 {[%emt 0:00:00]} Qh8 {[%emt 0:00:30]} 20. Nbd2 {[%emt 0:13:22]} (20. Be3 $142) 20... Nd4 {[%emt 0:07:30]} 21. Qd3 {[%emt 0:01:32]} Ba6 $1 {[%emt 0:00:30]} 22. b3 {[%emt 0:01:41]} (22. Nb3 $17 {might work better.}) 22... Rad8 {[%emt 0:02:50]} 23. Bb2 {[%emt 0:00:26] [#] Prevents Nc3} Nc3 $1 {[%emt 0:00:41][%mdl 512]} 24. Bxc3 {[%emt 0:00:20]} (24. Qe3 Nde2+) 24... bxc3 {[%emt 0:00:02]} 25. Nf3 {[%emt 0:00:30]} Nxb3 {[%emt 0:00:00][%mdl 64] Discovered Attack} 26. Qxc3 {[%emt 0:00:37]} Nxa1 {[%emt 0:00:00]} 27. Rxa1 {[%emt 0:00:18] [#]} g6 $1 {[%emt 0:01:08]} 28. hxg6 {[%emt 0:01:26]} (28. Na5 f5) 28... fxg6 {[%emt 0:00:05][%cal Bf7g6,Bg6g5,Bg5g4][%mdl 32] Strongly threatening ...h5.} 29. Rc1 {[%emt 0:00:12]} (29. Na5 {keeps fighting.}) 29... g5 {[%emt 0:07:14] aiming for ...g4.} 30. Qa5 $2 {[%emt 0:00:03]} (30. Na5) 30... Bxc4 $19 {[%emt 0:02:01]} 31. Rxc4 {[%emt 0:00:03]} g4 {[%emt 0:00:44]} 32. Qa6 {[%emt 0:00:03]} Rd1+ {[%emt 0:05:37]} (32... gxf3 33. Qxe6+ Rf7 34. Bg6 $14) 33. Kh2 {[%emt 0:00:41]} Qg7 {[%emt 0:01:03] Threatens to win with ...Qf7.} (33... gxf3 $2 34. Qxe6+ Rf7 35. Bg6 $18) 34. Qxe6+ {[%emt 0:00:30]} Kh8 {[%emt 0:00:00]} 35. Bc2 {[%emt 0:00:00] [#]} Ra1 $2 {[%emt 0:03:33]} (35... Rf1 36. Kg2 $11) (35... Rc1 $1 $19 36. Rxg4 Rxf3) 36. Rxg4 $16 {[%emt 0:00:40] White is more active.} Bg5 {[%emt 0:00:03] [#]} ({Black should play} 36... Rxf3 37. Kg2 (37. Rxg7 $2 Rxf2+ 38. Kh3 Rh1+ 39. Kg4 h5#) 37... Rxf2+ 38. Kxf2 Bg5) 37. Rxg5 {[%emt 0:00:38]} hxg5 $4 {[%emt 0:00:54][%mdl 8192]} (37... Qxg5 $11 {and Black stays safe.} 38. Kg2 (38. Nxg5 $2 {is a self mate.} Rxf2+ 39. Kh3 Rh1+ 40. Kg4 h5#) 38... Qc1) 38. Qh3+ $18 {[%emt 0:00:03]} Kg8 {[%emt 0:00:21]} 39. Bb3+ {[%emt 0:00:04]} Rf7 {[%emt 0:00:00]} 40. Qc8+ {[%emt 0:00:31]} (40. Bxf7+ Kxf7 41. Qd7+ Kg6 42. Qd3+ Kh6 $14) 40... Qf8 {[%emt 0:00:49]} 41. Bxf7+ {[%emt 0:00:35]} Kxf7 {[%emt 0:00:05]} 42. Nxg5+ {[%emt 0:00:18][%mdl 4096] Endgame KQR-KQN} Ke7 {[%emt 0:00:00]} 43. Qxc5+ {[%emt 0:00:47]} Ke8 {[%emt 0:00:01]} 44. Qc6+ {[%emt 0:00:23]} ({Not} 44. Qxa7 Qh8+ 45. Nh3 Qxe5 $16) 44... Ke7 {[%emt 0:00:08]} 45. Qd6+ {[%emt 0:01:03]} Ke8 {[%emt 0:00:06]} 46. Qb8+ {[%emt 0:00:18]} Ke7 {[%emt 0:00:19]} 47. Qxa7+ {[%emt 0:00:04]} Ke8 {[%emt 0:00:02]} 48. Qb8+ {[%emt 0:03:25]} (48. Qa8+ $142 Ke7 49. Qb7+ Ke8 50. Qb8+ Ke7 51. Qd6+ Ke8 52. Qc6+ Ke7 53. Qd6+ Ke8 54. Qc6+ Ke7 55. Qd6+) 48... Ke7 {[%emt 0:00:31]} 49. Qb7+ {[%emt 0:00:30]} Ke8 {[%emt 0:00:30]} 50. Qc8+ {[%emt 0:00:30]} (50. Qc6+ $142 Ke7 51. Qd6+ Ke8 52. Qg6+ Ke7 53. Qh7+ Ke8 54. Ne4) 50... Ke7 {[%emt 0:00:00]} 51. Qxf8+ {[%emt 0:00:00]} Kxf8 {[%emt 0:00:09] KR-KN} 52. f4 {[%emt 0:00:15][%cal Bf2f4,Bf4f5][%mdl 32] Kh3 would be deadly.} Rxa4 {[%emt 0:00:30]} 53. Kh3 {[%emt 0:00:00]} Kg7 {[%emt 0:01:05]} 54. Kg4 {[%emt 0:00:00] Kf5 is the strong threat.} Kg6 {[%emt 0:00:30]} 55. Nf3 {[%emt 0:00:17]} Ra3 {[%emt 0:00:00]} 56. Nh4+ {[%emt 0:01:40]} Kf7 {[%emt 0:00:00]} 57. f5 {[%emt 0:00:47] White mates.} Ra5 {[%emt 0:02:09]} 58. Ng6 {[%emt 0:00:34]} Ra3 {[%emt 0:00:17]} 59. Kh4 {[%emt 0:00:33]} Rf3 {[%emt 0:03:35]} 60. g4 {[%emt 0:00:06]} Ra3 {[%emt 0:00:18]} 61. Kg5 {[%emt 0:00:05]} Ra5 {[%emt 0:00:00]} 62. e6+ {[%emt 0:00:49]} Kg7 {[%emt 0:00:23]} 63. Nf4 {[%emt 0:00:00]} Ra4 {[%emt 0:00:17]} 64. Nh5+ {[%emt 0:00:08]} Kf8 {[%emt 0:00:00]} 65. Kf6 {[%emt 0:01:04]} Ra7 {[%emt 0:00:00]} 66. g5 {[%emt 0:00:16]} Rf7+ {[%emt 0:00:12]} 67. Kg6 {[%emt 0:00:42]} Re7 {[%emt 0:00:09]} 68. Nf4 {[%emt 0:00:28]} Rg7+ {[%emt 0:00:34]} 69. Kf6 {[%emt 0:00:03]} Rf7+ {[%emt 0:00:21]} 70. Ke5 $1 {[%emt 0:00:04]} Ra7 {[%emt 0:00:20]} 71. f6 {[%emt 0:00:30]} Ra5+ {[%emt 0:00:00]} 72. Nd5 {[%emt 0:00:00]} Ke8 {[%emt 0:01:02]} 73. g6 {[%emt 0:00:00] Quite a comeback for White. A cool game by Isilak.   Weighted Error Value: White=0.46/Black=0.39} 1-0

[Event "Turkish Youth Championships 2023"]
[Site "Samsun"]
[Date "2023.05.23"]
[Round "7.6"]
[White "Kavri, Yusuf Eren"]
[Black "Cakmak, Kursat Kagan"]
[Result "1-0"]
[WhiteElo "2029"]
[BlackElo "1498"]
[PlyCount "47"]
[EventDate "2023.05.19"]
[EventType "swiss"]
[EventCountry "TUR"]
[TimeControl "5400+30"]
[BlackClock "0:52:00"]

1. e4 {[%emt 0:01:00]} d6 {[%emt 0:01:00]} 2. d4 {[%emt 0:00:30]} Nf6 {[%emt 0:00:30]} 3. Nc3 {[%emt 0:00:30]} e5 {[%emt 0:00:30]} 4. Nf3 {[%emt 0:00:30]} Nbd7 {[%emt 0:00:30]} 5. Bc4 {[%emt 0:00:30]} Be7 {[%emt 0:00:30]} 6. O-O {[%emt 0:00:30]} O-O {[%emt 0:00:30]} 7. Re1 {[%emt 0:00:30]} a6 {[%emt 0:00:00]} 8. a4 {[%emt 0:00:30]} b6 {[%emt 0:00:00]} 9. Bg5 {[%emt 0:08:30]} Bb7 {[%emt 0:02:30]} 10. Bxf6 {[%emt 0:06:30]} Bxf6 {[%emt 0:00:30]} 11. Bd5 {[%emt 0:00:30]} c6 {[%emt 0:09:30]} 12. Ba2 {[%emt 0:00:30]} exd4 {[%emt 0:02:30]} 13. Nxd4 {[%emt 0:00:30]} Bxd4 {[%emt 0:00:30]} 14. Qxd4 {[%emt 0:00:30]} Qf6 {[%emt 0:00:30]} 15. Rad1 {[%emt 0:01:30]} Qg5 {[%emt 0:04:30]} 16. Qd2 {[%emt 0:08:30]} Qh5 {[%emt 0:03:30]} 17. Qxd6 {[%emt 0:01:30]} Ne5 {[%emt 0:01:30]} 18. f4 {[%emt 0:04:30]} Ng6 {[%emt 0:05:30]} 19. f5 {[%emt 0:01:30]} Nh4 {[%emt 0:02:30]} 20. Rd3 {[%emt 0:06:30]} g5 {[%emt 0:05:30]} 21. Qf6 {[%emt 0:02:30]} Rae8 {[%emt 0:03:30]} 22. Rg3 {[%emt 0:01:30]} h6 {[%emt 0:00:30]} 23. Bc4 {[%emt 0:01:30]} g4 {[%emt 0:01:30]} 24. Be2 {[%emt 0:00:00]} 1-0

[Event "Turkish Youth Championships 2023"]
[Site "Samsun"]
[Date "2023.05.23"]
[Round "7.7"]
[White "Coskun, Emre"]
[Black "Temizer, Umut"]
[Result "0-1"]
[WhiteElo "1750"]
[BlackElo "1973"]
[PlyCount "120"]
[EventDate "2023.05.19"]
[EventType "swiss"]
[EventCountry "TUR"]
[TimeControl "5400+30"]
[WhiteClock "0:00:24"]

1. e4 {[%emt 0:01:00]} c5 {[%emt 0:03:00]} 2. Nc3 {[%emt 0:01:30]} Nc6 {[%emt 0:00:30]} 3. g3 {[%emt 0:00:30]} g6 {[%emt 0:01:30]} 4. Bg2 {[%emt 0:01:30]} Bg7 {[%emt 0:00:30]} 5. d3 {[%emt 0:00:30]} Rb8 {[%emt 0:05:30]} 6. Be3 {[%emt 0:05:30]} d6 {[%emt 0:02:30]} 7. Qd2 {[%emt 0:01:30]} b5 {[%emt 0:01:30]} 8. Nge2 {[%emt 0:01:30]} Nd4 {[%emt 0:01:30]} 9. O-O {[%emt 0:00:30]} b4 {[%emt 0:01:30]} 10. Nd1 {[%emt 0:00:30]} Nxe2+ {[%emt 0:02:30]} 11. Qxe2 {[%emt 0:00:00]} Nf6 {[%emt 0:00:00]} 12. h3 {[%emt 0:09:00]} O-O {[%emt 0:02:00]} 13. f4 {[%emt 0:01:30]} a5 {[%emt 0:00:30]} 14. g4 {[%emt 0:08:30]} a4 {[%emt 0:02:30]} 15. Rb1 {[%emt 0:04:30]} Qc7 {[%emt 0:02:30]} 16. b3 {[%emt 0:07:30]} Rb6 {[%emt 0:04:30]} 17. g5 {[%emt 0:09:30]} Nh5 {[%emt 0:11:30]} 18. Kh2 {[%emt 0:06:30]} axb3 {[%emt 0:01:30]} 19. axb3 {[%emt 0:00:30]} f6 {[%emt 0:00:30]} 20. Rf3 {[%emt 0:15:30]} d5 {[%emt 0:19:30]} 21. Kg1 {[%emt 0:04:03]} Bb7 {[%emt 0:07:30]} 22. Rf2 {[%emt 0:01:49]} fxg5 {[%emt 0:02:30]} 23. fxg5 {[%emt 0:00:06]} Nf4 {[%emt 0:00:00]} 24. Qg4 {[%emt 0:01:56]} Nxg2 {[%emt 0:01:00]} 25. Rxf8+ {[%emt 0:01:36]} Kxf8 {[%emt 0:00:30]} 26. Qxg2 {[%emt 0:00:00]} dxe4 {[%emt 0:02:30]} 27. dxe4 {[%emt 0:00:17]} Re6 {[%emt 0:03:30]} 28. Nf2 {[%emt 0:00:16]} Bc3 {[%emt 0:01:30]} 29. Qf3+ {[%emt 0:00:34]} Ke8 {[%emt 0:02:38]} 30. Rd1 {[%emt 0:03:01]} c4 {[%emt 0:00:47]} 31. Bf4 {[%emt 0:08:31]} Qc6 {[%emt 0:05:30]} 32. Kh2 {[%emt 0:01:04]} Qc5 {[%emt 0:02:43]} 33. h4 {[%emt 0:01:38]} Bd4 {[%emt 0:00:35]} 34. Bg3 {[%emt 0:00:59]} Bxf2 {[%emt 0:03:57]} 35. Bxf2 {[%emt 0:00:45]} Qe5+ {[%emt 0:00:01]} 36. Bg3 {[%emt 0:00:47]} Qxe4 {[%emt 0:00:10]} 37. Qf2 {[%emt 0:01:25]} Qg4 {[%emt 0:00:32]} 38. Re1 {[%emt 0:00:26]} Rxe1 {[%emt 0:00:24]} 39. Qxe1 {[%emt 0:00:30]} Qf3 {[%emt 0:00:30]} 40. Qg1 {[%emt 0:00:30]} c3 {[%emt 0:00:30]} 41. Bb8 {[%emt 0:00:30]} Qe2+ {[%emt 0:00:30]} 42. Kg3 {[%emt 0:00:30]} Qxc2 {[%emt 0:00:30]} 43. Qf1 {[%emt 0:00:30]} Qe4 {[%emt 0:00:30]} 44. Bf4 {[%emt 0:00:30]} Bc6 {[%emt 0:00:30]} 45. h5 {[%emt 0:00:30]} gxh5 {[%emt 0:00:30]} 46. Kh2 {[%emt 0:00:30]} h4 {[%emt 0:00:30]} 47. Bc1 {[%emt 0:00:30]} Qc2+ {[%emt 0:00:30]} 48. Kg1 {[%emt 0:00:30]} Qxb3 {[%emt 0:00:30]} 49. Qa6 {[%emt 0:00:30]} Qd1+ {[%emt 0:00:30]} 50. Kf2 {[%emt 0:00:30]} Qf3+ {[%emt 0:00:30]} 51. Ke1 {[%emt 0:00:30]} Qg3+ {[%emt 0:00:30]} 52. Kd1 {[%emt 0:00:30]} Qd6+ {[%emt 0:00:30]} 53. Ke1 {[%emt 0:00:30]} Qe6+ {[%emt 0:00:30]} 54. Kf2 {[%emt 0:00:30]} b3 {[%emt 0:00:30]} 55. Qb6 {[%emt 0:00:30]} Qf5+ {[%emt 0:00:30]} 56. Ke1 {[%emt 0:00:38]} Qb5 {[%emt 0:04:17]} 57. Qc7 {[%emt 0:02:38]} b2 {[%emt 0:00:22]} 58. Qc8+ {[%emt 0:00:37]} Kf7 {[%emt 0:00:03]} 59. Kf2 {[%emt 0:00:14]} b1=Q {[%emt 0:00:46]} 60. g6+ {[%emt 0:00:26]} hxg6 {[%emt 0:00:11]} 0-1

[Event "Turkish Youth Championships 2023"]
[Site "Samsun"]
[Date "2023.05.25"]
[Round "7.8"]
[White "Gungor, Cihan Akif"]
[Black "Sahbudak, Baris Cinar"]
[Result "1-0"]
[ECO "B27"]
[WhiteElo "1771"]
[BlackElo "1603"]
[Annotator "NA"]
[PlyCount "105"]
[EventDate "2023.05.19"]
[EventType "swiss"]
[EventCountry "TUR"]
[SourceTitle "playchess.com"]
[Source "ChessBase"]
[SourceQuality "1"]
[TimeControl "5400+30"]

1. e4 c5 2. Nf3 g6 3. c3 d5 4. exd5 Qxd5 5. Na3 Bg7 6. Bc4 {[%emt 0:00:30]} Qd8 {[%emt 0:04:30]} 7. O-O {[%emt 0:00:30]} Nf6 {[%emt 0:00:30]} 8. Qa4+ {[%emt 0:00:30]} Bd7 {[%emt 0:30:30]} 9. Qb3 {[%emt 0:00:30]} e6 {[%emt 0:02:30]} 10. Qxb7 {[%emt 0:00:30]} Nc6 {[%emt 0:02:30]} 11. d3 {[%emt 0:00:30]} Rb8 {[%emt 0:00:30]} 12. Qa6 {[%emt 0:00:30]} Rb6 {[%emt 0:00:30]} 13. Qa4 {[%emt 0:00:30]} Nd4 {[%emt 0:06:30]} 14. Qd1 {[%emt 0:02:30]} Nxf3+ {[%emt 0:01:30]} 15. Qxf3 {[%emt 0:00:30]} Bc6 {[%emt 0:01:30]} 16. Qg3 {[%emt 0:03:30]} O-O {[%emt 0:04:30]} 17. Bb3 {[%emt 0:06:30]} a5 {[%emt 0:07:30]} 18. Nc4 {[%emt 0:02:30]} Rb8 {[%emt 0:01:30]} 19. Ne5 {[%emt 0:06:30]} Ba8 {[%emt 0:02:30]} 20. Bg5 {[%emt 0:03:30]} h6 {[%emt 0:06:30]} 21. Bxf6 {[%emt 0:01:30]} Bxf6 {[%emt 0:00:30]} 22. Nxg6 {[%emt 0:02:30]} fxg6 {[%emt 0:01:30]} 23. Qxg6+ {[%emt 0:00:30]} Bg7 {[%emt 0:00:30]} 24. Bxe6+ {[%emt 0:00:30]} Kh8 {[%emt 0:00:00]} 25. Bf5 {[%emt 0:00:00]} Kg8 {[%emt 0:09:29]} 26. Qh7+ {[%emt 0:00:00]} Kf7 {[%emt 0:00:00]} 27. Bg6+ {[%emt 0:00:00]} Kf6 {[%emt 0:09:03]} 28. Bh5 {[%emt 0:00:00]} Qd7 {[%emt 0:00:49]} 29. Qg6+ {[%emt 0:00:30]} Ke7 {[%emt 0:04:49]} 30. Qxg7+ {[%emt 0:00:30]} Kd6 {[%emt 0:00:00]} 31. Qxd7+ {[%emt 0:00:30]} Kxd7 {[%emt 0:00:05]} 32. b3 {[%emt 0:00:00]} a4 {[%emt 0:00:19]} 33. bxa4 {[%emt 0:01:00]} Rb2 {[%emt 0:00:09]} 34. f3 {[%emt 0:00:30]} Rg8 {[%emt 0:00:47]} 35. Rf2 {[%emt 0:00:30]} Rb6 {[%emt 0:00:16]} 36. Re1 {[%emt 0:00:00]} Rg5 {[%emt 0:00:50]} 37. Bg4+ {[%emt 0:00:00]} Kc7 {[%emt 0:00:45]} 38. Re7+ {[%emt 0:00:30]} Kb8 {[%emt 0:00:09]} 39. Rfe2 {[%emt 0:00:30]} h5 {[%emt 0:00:20]} 40. h4 {[%emt 0:00:30]} Rd5 {[%emt 0:00:49]} 41. Re8+ {[%emt 0:00:30]} Ka7 {[%emt 0:00:00]} 42. R2e7+ {[%emt 0:00:00]} Bb7 {[%emt 0:00:00]} 43. Bc8 {[%emt 0:00:00]} Rxd3 {[%emt 0:00:48]} 44. Rh8 {[%emt 0:00:00]} Rxc3 {[%emt 0:01:17]} 45. Rhh7 {[%emt 0:00:00]} Rb1+ {[%emt 0:00:55]} 46. Kh2 {[%emt 0:00:30]} Rc4 {[%emt 0:01:25]} 47. Rxb7+ {[%emt 0:00:30]} Rxb7 {[%emt 0:00:00]} 48. Rxb7+ {[%emt 0:00:30]} Ka8 {[%emt 0:00:15]} 49. Rh7 {[%emt 0:00:30]} Rxh4+ {[%emt 0:00:15]} 50. Kg3 {[%emt 0:00:30]} Rxa4 {[%emt 0:00:30]} 51. Rxh5 {[%emt 0:00:00]} c4 {[%emt 0:00:00]} 52. Rc5 {[%emt 0:00:00]} Rxa2 {[%emt 0:00:17]} 53. Rxc4 {[%emt 0:00:00]} 1-0

[Event "Turkish Youth Championships 2023"]
[Site "Samsun"]
[Date "2023.05.23"]
[Round "7.8"]
[White "Kaynak, Deniz Can"]
[Black "Biyiksiz, Ali Batuhan"]
[Result "0-1"]
[WhiteElo "1651"]
[BlackElo "2107"]
[PlyCount "136"]
[EventDate "2023.05.19"]
[EventType "swiss"]
[EventCountry "TUR"]
[TimeControl "5400+30"]
[WhiteClock "0:05:54"]

1. c4 {[%emt 0:01:00]} e5 {[%emt 0:01:00]} 2. g3 {[%emt 0:00:30]} Nc6 {[%emt 0:00:30]} 3. Bg2 {[%emt 0:00:30]} f5 {[%emt 0:00:30]} 4. Nc3 {[%emt 0:00:30]} Nf6 {[%emt 0:00:30]} 5. e3 {[%emt 0:00:30]} e4 {[%emt 0:00:30]} 6. d3 {[%emt 0:00:30]} Bb4 {[%emt 0:00:00]} 7. Nge2 {[%emt 0:00:30]} d5 {[%emt 0:00:00]} 8. O-O {[%emt 0:17:30]} dxc4 {[%emt 0:00:00]} 9. dxe4 {[%emt 0:00:30]} fxe4 {[%emt 0:00:00]} 10. Qxd8+ {[%emt 0:00:30]} Nxd8 {[%emt 0:00:00]} 11. Nxe4 {[%emt 0:02:30]} Nxe4 {[%emt 0:00:00]} 12. Bxe4 {[%emt 0:00:30]} c6 {[%emt 0:00:00]} 13. Rd1 {[%emt 0:09:30]} Nf7 {[%emt 0:00:00]} 14. Bd2 {[%emt 0:05:30]} a5 {[%emt 0:00:30]} 15. Nd4 {[%emt 0:17:30]} O-O {[%emt 0:10:30]} 16. Rac1 {[%emt 0:02:30]} Ng5 {[%emt 0:01:30]} 17. Bg2 {[%emt 0:03:30]} Bg4 {[%emt 0:01:30]} 18. f3 {[%emt 0:02:30]} Nh3+ {[%emt 0:23:30]} 19. Bxh3 {[%emt 0:01:30]} Bxh3 {[%emt 0:00:00]} 20. Rxc4 {[%emt 0:05:30]} Be7 {[%emt 0:04:00]} 21. f4 {[%emt 0:02:30]} Rfd8 {[%emt 0:03:30]} 22. Kf2 {[%emt 0:14:49]} Bg4 {[%emt 0:04:30]} 23. Ne2 {[%emt 0:01:05]} Be6 {[%emt 0:05:30]} 24. Re4 {[%emt 0:01:49]} Kf7 {[%emt 0:01:30]} 25. b3 {[%emt 0:02:54]} Bf6 {[%emt 0:05:30]} 26. Ke1 {[%emt 0:00:16]} b5 {[%emt 0:01:30]} 27. f5 {[%emt 0:01:40]} Bxf5 {[%emt 0:00:30]} 28. Rf4 {[%emt 0:00:00]} Be6 {[%emt 0:12:30]} 29. Rc1 {[%emt 0:01:16]} Ra6 {[%emt 0:04:30]} 30. Bc3 {[%emt 0:01:09]} a4 {[%emt 0:06:26]} 31. Bxf6 {[%emt 0:00:30]} gxf6 {[%emt 0:00:00]} 32. Nd4 {[%emt 0:02:22]} Bd5 {[%emt 0:00:09]} 33. e4 {[%emt 0:00:29]} Re8 {[%emt 0:01:45]} 34. bxa4 {[%emt 0:00:10]} Rxa4 {[%emt 0:00:37]} 35. Nxc6 {[%emt 0:00:43]} Bxe4 {[%emt 0:00:55]} 36. Kf1 {[%emt 0:00:42]} Rxa2 {[%emt 0:04:35]} 37. Nd4 {[%emt 0:00:31]} Rxh2 {[%emt 0:03:15]} 38. Rc7+ {[%emt 0:00:47]} Kg8 {[%emt 0:05:03]} 39. Rxf6 {[%emt 0:00:51]} Ra8 {[%emt 0:00:18]} 40. Rf2 {[%emt 0:01:02]} Ra1+ {[%emt 0:01:43]} 41. Ke2 {[%emt 0:00:06]} Ra2+ {[%emt 0:00:18]} 42. Ke3 {[%emt 0:00:01]} Rhxf2 {[%emt 0:01:09]} 43. Kxe4 {[%emt 0:00:02]} b4 {[%emt 0:01:11]} 44. Rb7 {[%emt 0:00:01]} Rab2 {[%emt 0:00:05]} 45. Nc6 {[%emt 0:00:31]} b3 {[%emt 0:01:22]} 46. Nd4 {[%emt 0:00:01]} Rg2 {[%emt 0:00:03]} 47. Rxb3 {[%emt 0:00:29]} Rxb3 {[%emt 0:00:37]} 48. Nxb3 {[%emt 0:00:30]} Rxg3 {[%emt 0:00:30]} 49. Nd4 {[%emt 0:00:00]} Rg4+ {[%emt 0:00:11]} 50. Ke3 {[%emt 0:00:00]} h5 {[%emt 0:00:15]} 51. Nf5 {[%emt 0:00:02]} Kh7 {[%emt 0:00:07]} 52. Kf3 {[%emt 0:00:12]} Kg6 {[%emt 0:00:13]} 53. Ne3 {[%emt 0:00:30]} Ra4 {[%emt 0:00:00]} 54. Nd1 {[%emt 0:01:26]} Kg5 {[%emt 0:00:08]} 55. Nf2 {[%emt 0:00:00]} Ra3+ {[%emt 0:00:11]} 56. Kg2 {[%emt 0:00:13]} Kh4 {[%emt 0:00:30]} 57. Kh2 {[%emt 0:00:30]} Ra2 {[%emt 0:00:30]} 58. Kg2 {[%emt 0:00:30]} Kg5 {[%emt 0:00:00]} 59. Kf3 {[%emt 0:00:04]} Ra3+ {[%emt 0:00:19]} 60. Kg2 {[%emt 0:00:30]} h4 {[%emt 0:00:07]} 61. Nh3+ {[%emt 0:00:00]} Kh5 {[%emt 0:00:43]} 62. Nf2 {[%emt 0:00:00]} Rg3+ {[%emt 0:00:00]} 63. Kh2 {[%emt 0:00:26]} Kg6 {[%emt 0:00:13]} 64. Nh1 {[%emt 0:00:33]} Ra3 {[%emt 0:00:24]} 65. Nf2 {[%emt 0:01:11]} Kg5 {[%emt 0:00:43]} 66. Nh3+ {[%emt 0:00:39]} Kg4 {[%emt 0:00:28]} 67. Nf2+ {[%emt 0:00:34]} Kf3 {[%emt 0:00:17]} 68. Nh1 {[%emt 0:00:00]} Ra1 {[%emt 0:00:05]} 0-1